[Event "November 21 Early 2023"]
[Site "https://www.chess.com"]
[Date "2023.11.21"]
[Round "5"]
[White "Saravana, Krishnan P."]
[Black "Hasangatin, Ramil"]
[Result "1-0"]
[Board "72"]
[TimeControl "180+1"]
[WhiteFideId "5018382"]
[BlackFideId "4122160"]
[WhiteElo "2167"]
[BlackElo "2317"]
[WhiteTeam "IND"]
[BlackTeam "RUS"]
[WhiteClock "0:01:21"]
[BlackClock "0:00:00"]

1. e4 {[%clk 0:02:59]}  d5 {[%clk 0:02:59]} 2. exd5 {[%clk 0:02:58]}  Qxd5 {[%clk 0:03:00]} 3. Nc3 {[%clk 0:02:58]}  Qd6 {[%clk 0:03:01]} 4. d4 {[%clk 0:02:57]}  Nf6 {[%clk 0:03:01]} 5. Nf3 {[%clk 0:02:56]}  c6 {[%clk 0:03:02]} 6. Ne5 {[%clk 0:02:55]}  Nbd7 {[%clk 0:03:00]} 7. Nc4 {[%clk 0:02:55]}  Qc7 {[%clk 0:03:00]} 8. Qf3 {[%clk 0:02:55]}  Nb6 {[%clk 0:03:01]} 9. Bf4 {[%clk 0:02:53]}  Qd8 {[%clk 0:03:01]} 10. Be5 {[%clk 0:02:45]}  Be6 {[%clk 0:03:00]} 11. Na5 {[%clk 0:02:36]}  Qc8 {[%clk 0:02:55]} 12. Bd3 {[%clk 0:02:30]}  Nbd5 {[%clk 0:02:55]} 13. O-O {[%clk 0:02:19]}  b6 {[%clk 0:02:51]} 14. Nc4 {[%clk 0:02:00]}  b5 {[%clk 0:02:52]} 15. Ne3 {[%clk 0:01:57]}  Nxc3 {[%clk 0:02:40]} 16. bxc3 {[%clk 0:01:57]}  Nd7 {[%clk 0:02:34]} 17. a4 {[%clk 0:01:46]}  Nxe5 {[%clk 0:02:34]} 18. dxe5 {[%clk 0:01:46]}  g6 {[%clk 0:02:19]} 19. Be4 {[%clk 0:01:43]}  Bd7 {[%clk 0:02:13]} 20. axb5 {[%clk 0:01:42]}  Qc7 {[%clk 0:02:06]} 21. bxc6 {[%clk 0:01:39]}  Be6 {[%clk 0:02:06]} 22. Nd5 {[%clk 0:01:38]}  Bxd5 {[%clk 0:02:06]} 23. Bxd5 {[%clk 0:01:33]}  e6 {[%clk 0:02:07]} 24. Qf6 {[%clk 0:01:28]}  Rg8 {[%clk 0:02:04]} 25. Bxe6 {[%clk 0:01:28]}  Bg7 {[%clk 0:01:58]} 26. Bd7+ {[%clk 0:01:28]}  Kf8 {[%clk 0:01:57]} 27. Qd6+ {[%clk 0:01:26]}  Qxd6 {[%clk 0:01:58]} 28. exd6 {[%clk 0:01:26]}  Bxc3 {[%clk 0:00:00]} 29. Ra4 {[%clk 0:01:21]} 1-0

[Event "November 21 Early 2023"]
[Site "https://www.chess.com"]
[Date "2023.11.21"]
[Round "5"]
[White "Shuvalova, Polina"]
[Black "Cruz Mendez, Jean Marco"]
[Result "1/2-1/2"]
[Board "73"]
[TimeControl "180+1"]
[WhiteFideId "24171760"]
[BlackFideId "3526402"]
[WhiteElo "2342"]
[BlackElo "2064"]
[WhiteTeam "RUS"]
[BlackTeam "CUB"]
[WhiteClock "0:00:10"]
[BlackClock "0:00:35"]

1. e4 {[%clk 0:03:00]}  c5 {[%clk 0:02:57]} 2. Nf3 {[%clk 0:03:01]}  d6 {[%clk 0:02:56]} 3. Bb5+ {[%clk 0:03:01]}  Bd7 {[%clk 0:02:55]} 4. Bxd7+ {[%clk 0:02:59]}  Qxd7 {[%clk 0:02:55]} 5. O-O {[%clk 0:03:00]}  Nc6 {[%clk 0:02:55]} 6. Re1 {[%clk 0:02:59]}  Nf6 {[%clk 0:02:54]} 7. c3 {[%clk 0:02:59]}  e6 {[%clk 0:02:53]} 8. d4 {[%clk 0:02:59]}  cxd4 {[%clk 0:02:54]} 9. cxd4 {[%clk 0:03:00]}  d5 {[%clk 0:02:51]} 10. e5 {[%clk 0:03:00]}  Ne4 {[%clk 0:02:47]} 11. Nbd2 {[%clk 0:03:00]}  Nxd2 {[%clk 0:02:44]} 12. Bxd2 {[%clk 0:03:01]}  Be7 {[%clk 0:02:43]} 13. h4 {[%clk 0:03:00]}  O-O {[%clk 0:02:39]} 14. a3 {[%clk 0:02:59]}  Rfc8 {[%clk 0:02:35]} 15. Rc1 {[%clk 0:02:55]}  Rc7 {[%clk 0:02:35]} 16. h5 {[%clk 0:02:54]}  h6 {[%clk 0:02:32]} 17. Re3 {[%clk 0:02:51]}  Rac8 {[%clk 0:02:26]} 18. Bc3 {[%clk 0:02:40]}  b5 {[%clk 0:02:13]} 19. Qd3 {[%clk 0:02:31]}  b4 {[%clk 0:02:03]} 20. axb4 {[%clk 0:02:29]}  Nxb4 {[%clk 0:02:03]} 21. Qd2 {[%clk 0:02:22]}  a5 {[%clk 0:02:02]} 22. Ra1 {[%clk 0:02:21]}  Qb5 {[%clk 0:02:00]} 23. Qd1 {[%clk 0:02:10]}  Nc6 {[%clk 0:01:51]} 24. Ne1 {[%clk 0:02:04]}  Bb4 {[%clk 0:01:49]} 25. Nd3 {[%clk 0:02:00]}  Bxc3 {[%clk 0:01:47]} 26. bxc3 {[%clk 0:02:00]}  Nb8 {[%clk 0:01:45]} 27. Qg4 {[%clk 0:01:48]}  Qe8 {[%clk 0:01:29]} 28. Rg3 {[%clk 0:01:44]}  Qf8 {[%clk 0:01:27]} 29. Nc5 {[%clk 0:01:39]}  Nd7 {[%clk 0:01:25]} 30. Nxd7 {[%clk 0:01:12]}  Rxd7 {[%clk 0:01:26]} 31. Rxa5 {[%clk 0:01:12]}  Rdc7 {[%clk 0:01:26]} 32. Qf4 {[%clk 0:01:03]}  Rxc3 {[%clk 0:01:20]} 33. Rxc3 {[%clk 0:01:00]}  Rxc3 {[%clk 0:01:21]} 34. Ra7 {[%clk 0:01:00]}  Rc4 {[%clk 0:01:15]} 35. g3 {[%clk 0:00:58]}  Rc8 {[%clk 0:01:01]} 36. Kg2 {[%clk 0:00:58]}  Re8 {[%clk 0:01:01]} 37. Qf3 {[%clk 0:00:55]}  Re7 {[%clk 0:01:01]} 38. Ra5 {[%clk 0:00:53]}  Re8 {[%clk 0:01:00]} 39. Qb3 {[%clk 0:00:47]}  Rb8 {[%clk 0:00:58]} 40. Qf3 {[%clk 0:00:33]}  Qb4 {[%clk 0:00:53]} 41. Ra7 {[%clk 0:00:33]}  Rb7 {[%clk 0:00:53]} 42. Ra8+ {[%clk 0:00:33]}  Rb8 {[%clk 0:00:53]} 43. Ra7 {[%clk 0:00:32]}  Rb7 {[%clk 0:00:52]} 44. Ra8+ {[%clk 0:00:30]}  Rb8 {[%clk 0:00:53]} 45. Rxb8+ {[%clk 0:00:21]}  Qxb8 {[%clk 0:00:52]} 46. Qc3 {[%clk 0:00:22]}  Qb1 {[%clk 0:00:49]} 47. g4 {[%clk 0:00:18]}  Qe4+ {[%clk 0:00:49]} 48. f3 {[%clk 0:00:18]}  Qb1 {[%clk 0:00:46]} 49. Qc8+ {[%clk 0:00:17]}  Kh7 {[%clk 0:00:45]} 50. Qc3 {[%clk 0:00:18]}  Qd1 {[%clk 0:00:40]} 51. Qe3 {[%clk 0:00:17]}  Qc2+ {[%clk 0:00:38]} 52. Kg3 {[%clk 0:00:17]}  Qd1 {[%clk 0:00:38]} 53. Kg2 {[%clk 0:00:17]}  Qc2+ {[%clk 0:00:37]} 54. Kg3 {[%clk 0:00:17]}  Qd1 {[%clk 0:00:38]} 55. f4 {[%clk 0:00:13]}  Qc2 {[%clk 0:00:35]} 56. Qf2 {[%clk 0:00:08]}  Qd3+ {[%clk 0:00:35]} 57. Kg2 {[%clk 0:00:08]}  Qe4+ {[%clk 0:00:35]} 58. Kg3 {[%clk 0:00:09]}  Qd3+ {[%clk 0:00:35]} 59. Kg2 {[%clk 0:00:09]}  Qe4+ {[%clk 0:00:35]} 60. Kg3 {[%clk 0:00:10]}  Qd3+ {[%clk 0:00:35]} 1/2-1/2

[Event "November 21 Early 2023"]
[Site "https://www.chess.com"]
[Date "2023.11.21"]
[Round "5"]
[White "Starozhilov, Leonid"]
[Black "robertoalejandro10"]
[Result "1-0"]
[Board "74"]
[TimeControl "180+1"]
[WhiteFideId "14106752"]
[WhiteElo "2270"]
[BlackElo "2489"]
[WhiteTeam "UKR"]
[WhiteClock "0:01:35"]
[BlackClock "0:01:17"]

1. e4 {[%clk 0:02:52]}  c5 {[%clk 0:02:59]} 2. Nf3 {[%clk 0:02:52]}  g6 {[%clk 0:02:58]} 3. c4 {[%clk 0:02:51]}  Nc6 {[%clk 0:02:56]} 4. d4 {[%clk 0:02:51]}  cxd4 {[%clk 0:02:57]} 5. Nxd4 {[%clk 0:02:52]}  Bg7 {[%clk 0:02:55]} 6. Be3 {[%clk 0:02:50]}  Nf6 {[%clk 0:02:54]} 7. Nc3 {[%clk 0:02:50]}  Ng4 {[%clk 0:02:55]} 8. Qxg4 {[%clk 0:02:50]}  Nxd4 {[%clk 0:02:55]} 9. Qd1 {[%clk 0:02:51]}  Ne6 {[%clk 0:02:55]} 10. Rc1 {[%clk 0:02:51]}  Qa5 {[%clk 0:02:54]} 11. Qd2 {[%clk 0:02:41]}  b6 {[%clk 0:02:53]} 12. f3 {[%clk 0:02:38]}  Bb7 {[%clk 0:02:53]} 13. b3 {[%clk 0:02:36]}  g5 {[%clk 0:02:51]} 14. Nd5 {[%clk 0:02:29]}  Qxd2+ {[%clk 0:02:45]} 15. Kxd2 {[%clk 0:02:30]}  Rc8 {[%clk 0:02:39]} 16. h4 {[%clk 0:02:28]}  gxh4 {[%clk 0:02:30]} 17. Rxh4 {[%clk 0:02:27]}  d6 {[%clk 0:02:21]} 18. Bd3 {[%clk 0:02:17]}  Nc5 {[%clk 0:02:20]} 19. Rch1 {[%clk 0:02:14]}  Nxd3 {[%clk 0:02:15]} 20. Kxd3 {[%clk 0:02:14]}  e6 {[%clk 0:02:09]} 21. Rxh7 {[%clk 0:02:08]}  Rxh7 {[%clk 0:02:08]} 22. Rxh7 {[%clk 0:02:08]}  Kf8 {[%clk 0:02:09]} 23. Nc3 {[%clk 0:01:59]}  Ba6 {[%clk 0:02:06]} 24. Bd4 {[%clk 0:01:44]}  e5 {[%clk 0:01:43]} 25. Be3 {[%clk 0:01:43]}  Kg8 {[%clk 0:01:44]} 26. Rh1 {[%clk 0:01:42]}  Bb7 {[%clk 0:01:43]} 27. a4 {[%clk 0:01:42]}  Re8 {[%clk 0:01:34]} 28. g4 {[%clk 0:01:42]}  f6 {[%clk 0:01:29]} 29. Ke2 {[%clk 0:01:41]}  Kf7 {[%clk 0:01:29]} 30. Nb5 {[%clk 0:01:40]}  Ke7 {[%clk 0:01:17]} 31. Rh7 {[%clk 0:01:35]} 1-0

[Event "November 21 Early 2023"]
[Site "https://www.chess.com"]
[Date "2023.11.21"]
[Round "5"]
[White "Bobomurodova, Maftuna"]
[Black "Demchenko, Anton"]
[Result "0-1"]
[Board "81"]
[TimeControl "180+1"]
[WhiteFideId "14207400"]
[BlackFideId "4160258"]
[WhiteElo "1814"]
[BlackElo "2545"]
[WhiteTeam "UZB"]
[BlackTeam "SLO"]
[WhiteClock "0:00:20"]
[BlackClock "0:00:16"]

1. e4 {[%clk 0:03:00]}  e5 {[%clk 0:02:58]} 2. Nf3 {[%clk 0:02:59]}  Nc6 {[%clk 0:02:55]} 3. Bc4 {[%clk 0:02:54]}  Nf6 {[%clk 0:02:54]} 4. d3 {[%clk 0:02:51]}  h6 {[%clk 0:02:54]} 5. c3 {[%clk 0:02:49]}  d6 {[%clk 0:02:54]} 6. h3 {[%clk 0:02:46]}  g6 {[%clk 0:02:53]} 7. Nbd2 {[%clk 0:02:42]}  Bg7 {[%clk 0:02:53]} 8. Nf1 {[%clk 0:02:39]}  O-O {[%clk 0:02:51]} 9. Ng3 {[%clk 0:02:38]}  d5 {[%clk 0:02:48]} 10. exd5 {[%clk 0:02:37]}  Nxd5 {[%clk 0:02:48]} 11. O-O {[%clk 0:02:36]}  a6 {[%clk 0:02:47]} 12. Bb3 {[%clk 0:02:35]}  Kh8 {[%clk 0:02:44]} 13. d4 {[%clk 0:02:32]}  exd4 {[%clk 0:02:43]} 14. cxd4 {[%clk 0:02:28]}  Be6 {[%clk 0:02:36]} 15. Ne5 {[%clk 0:02:23]}  Qh4 {[%clk 0:02:12]} 16. Nf3 {[%clk 0:02:11]}  Qe7 {[%clk 0:02:10]} 17. Ne5 {[%clk 0:02:06]}  Nxe5 {[%clk 0:02:03]} 18. dxe5 {[%clk 0:02:05]}  Rad8 {[%clk 0:01:59]} 19. Qe2 {[%clk 0:02:04]}  Qh4 {[%clk 0:01:53]} 20. Kh2 {[%clk 0:01:37]}  Nb4 {[%clk 0:00:56]} 21. Bxe6 {[%clk 0:01:29]}  fxe6 {[%clk 0:00:56]} 22. f4 {[%clk 0:01:27]}  Nd3 {[%clk 0:00:56]} 23. Qe4 {[%clk 0:01:08]}  g5 {[%clk 0:00:56]} 24. fxg5 {[%clk 0:00:59]}  Qxe4 {[%clk 0:00:52]} 25. Rxf8+ {[%clk 0:00:58]}  Rxf8 {[%clk 0:00:51]} 26. Nxe4 {[%clk 0:00:58]}  Bxe5+ {[%clk 0:00:49]} 27. Kg1 {[%clk 0:00:55]}  Bd4+ {[%clk 0:00:50]} 28. Kh2 {[%clk 0:00:55]}  Rf1 {[%clk 0:00:50]} 29. gxh6 {[%clk 0:00:49]}  Be5+ {[%clk 0:00:48]} 30. g3 {[%clk 0:00:49]}  Rxc1 {[%clk 0:00:44]} 31. Rxc1 {[%clk 0:00:45]}  Nxc1 {[%clk 0:00:45]} 32. Nc5 {[%clk 0:00:46]}  Nxa2 {[%clk 0:00:34]} 33. Nxb7 {[%clk 0:00:46]}  Kh7 {[%clk 0:00:24]} 34. Nc5 {[%clk 0:00:42]}  Kxh6 {[%clk 0:00:23]} 35. Nxe6 {[%clk 0:00:40]}  a5 {[%clk 0:00:23]} 36. b3 {[%clk 0:00:38]}  Nc1 {[%clk 0:00:22]} 37. Nc5 {[%clk 0:00:33]}  Bd6 {[%clk 0:00:20]} 38. Na4 {[%clk 0:00:32]}  Nxb3 {[%clk 0:00:20]} 39. Kg2 {[%clk 0:00:33]}  Nc5 {[%clk 0:00:20]} 40. Nc3 {[%clk 0:00:32]}  a4 {[%clk 0:00:20]} 41. g4 {[%clk 0:00:33]}  a3 {[%clk 0:00:20]} 42. Kf3 {[%clk 0:00:32]}  Be5 {[%clk 0:00:19]} 43. Na2 {[%clk 0:00:33]}  Na4 {[%clk 0:00:16]} 44. Ke4 {[%clk 0:00:31]}  Nc3+ {[%clk 0:00:16]} 45. Nxc3 {[%clk 0:00:20]}  Bxc3 {[%clk 0:00:16]} 0-1

[Event "November 21 Early 2023"]
[Site "https://www.chess.com"]
[Date "2023.11.21"]
[Round "5"]
[White "Rietze, Clemens, Dr."]
[Black "Zhigalko, Sergei"]
[Result "0-1"]
[Board "82"]
[TimeControl "180+1"]
[WhiteFideId "24620351"]
[BlackFideId "13502956"]
[WhiteElo "2288"]
[BlackElo "2616"]
[WhiteTeam "GER"]
[BlackTeam "BLR"]
[WhiteClock "0:00:32"]
[BlackClock "0:01:36"]

1. d4 {[%clk 0:03:00]}  Nf6 {[%clk 0:02:59]} 2. c4 {[%clk 0:03:01]}  e6 {[%clk 0:03:00]} 3. Nf3 {[%clk 0:03:01]}  b6 {[%clk 0:03:00]} 4. g3 {[%clk 0:03:01]}  Ba6 {[%clk 0:03:00]} 5. Qc2 {[%clk 0:03:02]}  Bb4+ {[%clk 0:02:59]} 6. Bd2 {[%clk 0:03:01]}  Be7 {[%clk 0:02:59]} 7. Bg2 {[%clk 0:03:01]}  O-O {[%clk 0:02:55]} 8. O-O {[%clk 0:03:02]}  c6 {[%clk 0:02:56]} 9. b3 {[%clk 0:02:59]}  d5 {[%clk 0:02:56]} 10. a4 {[%clk 0:02:56]}  Nbd7 {[%clk 0:02:54]} 11. Na3 {[%clk 0:02:41]}  Ne4 {[%clk 0:02:51]} 12. Be1 {[%clk 0:02:29]}  f5 {[%clk 0:02:32]} 13. b4 {[%clk 0:02:26]}  Rc8 {[%clk 0:02:28]} 14. e3 {[%clk 0:02:11]}  c5 {[%clk 0:02:22]} 15. dxc5 {[%clk 0:02:02]}  bxc5 {[%clk 0:02:20]} 16. b5 {[%clk 0:02:01]}  Bb7 {[%clk 0:02:21]} 17. Nd2 {[%clk 0:01:46]}  Bf6 {[%clk 0:02:18]} 18. Rb1 {[%clk 0:01:45]}  Nc3 {[%clk 0:02:01]} 19. Nb3 {[%clk 0:01:00]}  Nxb1 {[%clk 0:01:58]} 20. Qxb1 {[%clk 0:01:00]}  Ne5 {[%clk 0:01:46]} 21. Na5 {[%clk 0:00:53]}  Ba8 {[%clk 0:01:46]} 22. f4 {[%clk 0:00:47]}  Ng4 {[%clk 0:01:39]} 23. Qb3 {[%clk 0:00:32]}  Nxe3 {[%clk 0:01:36]} 0-1

[Event "November 21 Early 2023"]
[Site "https://www.chess.com"]
[Date "2023.11.21"]
[Round "5"]
[White "Kubicka, Anna"]
[Black "Boruchovsky, Avital"]
[Result "0-1"]
[Board "83"]
[TimeControl "180+1"]
[WhiteFideId "1152254"]
[BlackFideId "2800055"]
[WhiteElo "2042"]
[BlackElo "2450"]
[WhiteTeam "POL"]
[BlackTeam "ISR"]
[WhiteClock "0:00:00"]
[BlackClock "0:00:04"]

1. e4 {[%clk 0:02:57]}  e5 {[%clk 0:02:59]} 2. Nf3 {[%clk 0:02:57]}  Nc6 {[%clk 0:03:00]} 3. Bb5 {[%clk 0:02:57]}  a6 {[%clk 0:02:59]} 4. Ba4 {[%clk 0:02:58]}  Nf6 {[%clk 0:02:59]} 5. O-O {[%clk 0:02:58]}  Nxe4 {[%clk 0:02:59]} 6. Re1 {[%clk 0:02:54]}  Nc5 {[%clk 0:02:59]} 7. Bxc6 {[%clk 0:02:53]}  dxc6 {[%clk 0:03:00]} 8. Nxe5 {[%clk 0:02:52]}  Be7 {[%clk 0:03:00]} 9. d4 {[%clk 0:02:51]}  Ne6 {[%clk 0:02:59]} 10. c3 {[%clk 0:02:47]}  O-O {[%clk 0:02:59]} 11. Nd2 {[%clk 0:02:47]}  f6 {[%clk 0:02:54]} 12. Nd3 {[%clk 0:02:38]}  Re8 {[%clk 0:02:50]} 13. Ne4 {[%clk 0:02:21]}  Qd5 {[%clk 0:02:29]} 14. Qb3 {[%clk 0:01:54]}  Qxb3 {[%clk 0:02:20]} 15. axb3 {[%clk 0:01:55]}  Kf7 {[%clk 0:02:14]} 16. b4 {[%clk 0:01:46]}  b6 {[%clk 0:02:11]} 17. Bf4 {[%clk 0:01:34]}  Nxf4 {[%clk 0:02:10]} 18. Nxf4 {[%clk 0:01:34]}  Bf8 {[%clk 0:02:04]} 19. h4 {[%clk 0:01:23]}  Bb7 {[%clk 0:02:01]} 20. Ng3 {[%clk 0:01:19]}  g6 {[%clk 0:01:59]} 21. Nd3 {[%clk 0:01:12]}  Rxe1+ {[%clk 0:01:56]} 22. Rxe1 {[%clk 0:01:10]}  a5 {[%clk 0:01:55]} 23. bxa5 {[%clk 0:00:57]}  Rxa5 {[%clk 0:01:56]} 24. Ne2 {[%clk 0:00:42]}  Ba6 {[%clk 0:01:51]} 25. Nec1 {[%clk 0:00:38]}  Ra1 {[%clk 0:01:44]} 26. Nb3 {[%clk 0:00:27]}  Rxe1+ {[%clk 0:01:32]} 27. Nxe1 {[%clk 0:00:28]}  Bh6 {[%clk 0:01:32]} 28. Nf3 {[%clk 0:00:19]}  Ke6 {[%clk 0:01:27]} 29. g4 {[%clk 0:00:18]}  Be2 {[%clk 0:01:23]} 30. Kg2 {[%clk 0:00:17]}  Bd1 {[%clk 0:01:23]} 31. Nbd2 {[%clk 0:00:16]}  Bxd2 {[%clk 0:01:23]} 32. Nxd2 {[%clk 0:00:16]}  Bxg4 {[%clk 0:01:23]} 33. Kg3 {[%clk 0:00:15]}  Bf5 {[%clk 0:01:21]} 34. Kf4 {[%clk 0:00:15]}  h6 {[%clk 0:01:22]} 35. Nc4 {[%clk 0:00:12]}  g5+ {[%clk 0:01:21]} 36. Kg3 {[%clk 0:00:13]}  Bd3 {[%clk 0:01:19]} 37. Ne3 {[%clk 0:00:11]}  h5 {[%clk 0:01:05]} 38. f4 {[%clk 0:00:10]}  g4 {[%clk 0:01:01]} 39. Kf2 {[%clk 0:00:10]}  Kd6 {[%clk 0:00:55]} 40. Ng2 {[%clk 0:00:07]}  Be4 {[%clk 0:00:52]} 41. Ne3 {[%clk 0:00:06]}  c5 {[%clk 0:00:51]} 42. Nf1 {[%clk 0:00:06]}  cxd4 {[%clk 0:00:51]} 43. cxd4 {[%clk 0:00:07]}  Kd5 {[%clk 0:00:42]} 44. Ke3 {[%clk 0:00:07]}  Bg6 {[%clk 0:00:42]} 45. Ng3 {[%clk 0:00:06]}  c5 {[%clk 0:00:15]} 46. dxc5 {[%clk 0:00:06]}  bxc5 {[%clk 0:00:15]} 47. Ne2 {[%clk 0:00:06]}  Kc4 {[%clk 0:00:14]} 48. Ng3 {[%clk 0:00:02]}  Kb3 {[%clk 0:00:14]} 49. f5 {[%clk 0:00:03]}  Bh7 {[%clk 0:00:12]} 50. Ne4 {[%clk 0:00:02]}  c4 {[%clk 0:00:12]} 51. Nd2+ {[%clk 0:00:03]}  Kb4 {[%clk 0:00:13]} 52. Kf4 {[%clk 0:00:03]}  Bg8 {[%clk 0:00:13]} 53. Ne4 {[%clk 0:00:03]}  Kb3 {[%clk 0:00:12]} 54. Nxf6 {[%clk 0:00:03]}  Bf7 {[%clk 0:00:12]} 55. Ne4 {[%clk 0:00:03]}  Kxb2 {[%clk 0:00:12]} 56. Kg5 {[%clk 0:00:03]}  c3 {[%clk 0:00:12]} 57. Kf6 {[%clk 0:00:03]}  c2 {[%clk 0:00:05]} 58. Nc5 {[%clk 0:00:02]}  Bc4 {[%clk 0:00:04]} 59. Na4+ {[%clk 0:00:02]}  Ka3 {[%clk 0:00:04]} 60. Nc3 {[%clk 0:00:00]}  c1=Q {[%clk 0:00:04]} 0-1

[Event "November 21 Early 2023"]
[Site "https://www.chess.com"]
[Date "2023.11.21"]
[Round "5"]
[White "Koepke, Christian"]
[Black "Sonis, Francesco"]
[Result "0-1"]
[Board "85"]
[TimeControl "180+1"]
[WhiteFideId "4655737"]
[BlackFideId "895733"]
[WhiteElo "2238"]
[BlackElo "2435"]
[WhiteTeam "GER"]
[BlackTeam "ITA"]
[WhiteClock "0:00:00"]
[BlackClock "0:01:13"]

1. e4 {[%clk 0:03:00]}  Nc6 {[%clk 0:02:57]} 2. Nc3 {[%clk 0:02:57]}  e5 {[%clk 0:02:53]} 3. Nf3 {[%clk 0:02:52]}  d6 {[%clk 0:02:44]} 4. d3 {[%clk 0:02:49]}  f5 {[%clk 0:02:44]} 5. d4 {[%clk 0:02:40]}  fxe4 {[%clk 0:02:42]} 6. Nxe4 {[%clk 0:02:37]}  exd4 {[%clk 0:02:37]} 7. Nxd4 {[%clk 0:02:33]}  Qe7 {[%clk 0:02:37]} 8. Bd3 {[%clk 0:01:04]}  Nxd4 {[%clk 0:02:37]} 9. O-O {[%clk 0:01:05]}  Ne6 {[%clk 0:02:27]} 10. Re1 {[%clk 0:01:05]}  h6 {[%clk 0:02:12]} 11. Qh5+ {[%clk 0:00:58]}  Kd8 {[%clk 0:02:06]} 12. Ng5 {[%clk 0:00:50]}  Nf6 {[%clk 0:02:05]} 13. Nf7+ {[%clk 0:00:39]}  Kd7 {[%clk 0:02:00]} 14. Qg6 {[%clk 0:00:34]}  Rg8 {[%clk 0:01:58]} 15. Bf5 {[%clk 0:00:27]}  Kc6 {[%clk 0:01:58]} 16. Bd2 {[%clk 0:00:10]}  Nf4 {[%clk 0:01:43]} 17. Bxf4 {[%clk 0:00:09]}  Bxf5 {[%clk 0:01:40]} 18. Qxf5 {[%clk 0:00:04]}  Qxf7 {[%clk 0:01:39]} 19. Qa5 {[%clk 0:00:03]}  Qd5 {[%clk 0:01:35]} 20. Qc3+ {[%clk 0:00:02]}  Kd7 {[%clk 0:01:33]} 21. Rad1 {[%clk 0:00:01]}  Qf5 {[%clk 0:01:26]} 22. Qe3 {[%clk 0:00:01]}  Re8 {[%clk 0:01:25]} 23. Qxa7 {[%clk 0:00:01]}  Rxe1+ {[%clk 0:01:25]} 24. Rxe1 {[%clk 0:00:02]}  Qxf4 {[%clk 0:01:25]} 25. Qxb7 {[%clk 0:00:02]}  Qc4 {[%clk 0:01:21]} 26. b3 {[%clk 0:00:02]}  Qc6 {[%clk 0:01:21]} 27. Qb8 {[%clk 0:00:02]}  Be7 {[%clk 0:01:21]} 28. Qb4 {[%clk 0:00:02]}  Re8 {[%clk 0:01:18]} 29. h3 {[%clk 0:00:03]}  Bf8 {[%clk 0:01:18]} 30. Rd1 {[%clk 0:00:03]}  Qxc2 {[%clk 0:01:16]} 31. Rf1 {[%clk 0:00:02]}  Qxa2 {[%clk 0:01:13]} 32. Qb5+ {[%clk 0:00:02]}  Kd8 {[%clk 0:01:11]} 33. Qb8+ {[%clk 0:00:01]}  Kd7 {[%clk 0:01:12]} 34. Qb5+ {[%clk 0:00:01]}  Ke7 {[%clk 0:01:12]} 35. Re1+ {[%clk 0:00:01]}  Kf7 {[%clk 0:01:13]} 36. Qc4+ {[%clk 0:00:01]}  d5 {[%clk 0:01:12]} 37. Qxc7+ {[%clk 0:00:01]}  Re7 {[%clk 0:01:12]} 38. Rxe7+ {[%clk 0:00:00]}  Bxe7 {[%clk 0:01:13]} 0-1

[Event "November 21 Early 2023"]
[Site "https://www.chess.com"]
[Date "2023.11.21"]
[Round "5"]
[White "Korchmar, Vasiliy"]
[Black "Orlov, Georgi"]
[Result "1-0"]
[Board "88"]
[TimeControl "180+1"]
[WhiteFideId "24131750"]
[BlackFideId "2011271"]
[WhiteElo "2372"]
[BlackElo "2502"]
[WhiteTeam "RUS"]
[BlackTeam "USA"]
[WhiteClock "0:00:12"]
[BlackClock "0:00:00"]

1. e4 {[%clk 0:03:00]}  d6 {[%clk 0:02:59]} 2. d4 {[%clk 0:03:01]}  Nf6 {[%clk 0:02:59]} 3. Bd3 {[%clk 0:03:00]}  e5 {[%clk 0:02:58]} 4. c3 {[%clk 0:03:00]}  Nc6 {[%clk 0:02:54]} 5. Nf3 {[%clk 0:02:57]}  g6 {[%clk 0:02:43]} 6. O-O {[%clk 0:02:52]}  Bg7 {[%clk 0:02:43]} 7. h3 {[%clk 0:02:48]}  O-O {[%clk 0:02:41]} 8. Re1 {[%clk 0:02:40]}  a6 {[%clk 0:02:35]} 9. Nbd2 {[%clk 0:02:39]}  Nh5 {[%clk 0:02:28]} 10. dxe5 {[%clk 0:02:35]}  dxe5 {[%clk 0:02:26]} 11. Nc4 {[%clk 0:02:32]}  Nf4 {[%clk 0:02:23]} 12. Bf1 {[%clk 0:02:18]}  Be6 {[%clk 0:02:17]} 13. Be3 {[%clk 0:01:30]}  h6 {[%clk 0:02:14]} 14. a4 {[%clk 0:01:29]}  Qf6 {[%clk 0:01:57]} 15. Nh2 {[%clk 0:01:06]}  Rfd8 {[%clk 0:01:38]} 16. Qf3 {[%clk 0:01:05]}  Nd3 {[%clk 0:01:36]} 17. Bxd3 {[%clk 0:00:55]}  Rxd3 {[%clk 0:01:36]} 18. Qxf6 {[%clk 0:00:52]}  Bxf6 {[%clk 0:01:35]} 19. Nd2 {[%clk 0:00:48]}  Rad8 {[%clk 0:01:29]} 20. Ndf1 {[%clk 0:00:45]}  h5 {[%clk 0:01:26]} 21. Nf3 {[%clk 0:00:44]}  Na5 {[%clk 0:01:25]} 22. Ng5 {[%clk 0:00:44]}  Rxe3 {[%clk 0:01:17]} 23. Nxe3 {[%clk 0:00:42]}  Bxg5 {[%clk 0:01:17]} 24. Red1 {[%clk 0:00:42]}  Rc8 {[%clk 0:00:55]} 25. Nd5 {[%clk 0:00:41]}  Nb3 {[%clk 0:00:49]} 26. Ra3 {[%clk 0:00:41]}  Nc5 {[%clk 0:00:48]} 27. f3 {[%clk 0:00:41]}  Kf8 {[%clk 0:00:44]} 28. b4 {[%clk 0:00:42]}  Nd7 {[%clk 0:00:43]} 29. b5 {[%clk 0:00:38]}  c6 {[%clk 0:00:40]} 30. bxc6 {[%clk 0:00:29]}  bxc6 {[%clk 0:00:39]} 31. Nb4 {[%clk 0:00:28]}  Be3+ {[%clk 0:00:37]} 32. Kh2 {[%clk 0:00:25]}  Bc5 {[%clk 0:00:37]} 33. Raa1 {[%clk 0:00:22]}  a5 {[%clk 0:00:36]} 34. Nd3 {[%clk 0:00:22]}  Be7 {[%clk 0:00:32]} 35. Rab1 {[%clk 0:00:21]}  Rc7 {[%clk 0:00:18]} 36. Rb2 {[%clk 0:00:17]}  Kg7 {[%clk 0:00:18]} 37. Rdb1 {[%clk 0:00:16]}  Bc4 {[%clk 0:00:18]} 38. Rb7 {[%clk 0:00:15]}  Bxd3 {[%clk 0:00:16]} 39. Rxc7 {[%clk 0:00:14]}  Bxb1 {[%clk 0:00:14]} 40. Rxd7 {[%clk 0:00:15]}  Bg5 {[%clk 0:00:14]} 41. Ra7 {[%clk 0:00:14]}  Bd2 {[%clk 0:00:13]} 42. Rxa5 {[%clk 0:00:14]}  Bxc3 {[%clk 0:00:11]} 43. Rc5 {[%clk 0:00:14]}  Bd4 {[%clk 0:00:10]} 44. Rxc6 {[%clk 0:00:14]}  Kf8 {[%clk 0:00:09]} 45. a5 {[%clk 0:00:14]}  Ke7 {[%clk 0:00:09]} 46. a6 {[%clk 0:00:14]}  Kd7 {[%clk 0:00:10]} 47. Rc4 {[%clk 0:00:09]}  Be3 {[%clk 0:00:05]} 48. Rb4 {[%clk 0:00:09]}  Bd3 {[%clk 0:00:04]} 49. a7 {[%clk 0:00:09]}  Bxa7 {[%clk 0:00:02]} 50. Rb7+ {[%clk 0:00:09]}  Ke6 {[%clk 0:00:03]} 51. Rxa7 {[%clk 0:00:10]}  Bb5 {[%clk 0:00:03]} 52. Rb7 {[%clk 0:00:11]}  Bc6 {[%clk 0:00:03]} 53. Rb6 {[%clk 0:00:11]}  Kd6 {[%clk 0:00:02]} 54. Kg3 {[%clk 0:00:12]}  Kc7 {[%clk 0:00:00]} 55. Ra6 {[%clk 0:00:12]} 1-0